[Event "Live Chess"]
[Site "Chess.com"]
[Date "2023.05.20"]
[Round "-"]
[White "Stanbad1"]
[Black "JohanKjeldahl"]
[Result "1-0"]
[WhiteElo "2432"]
[BlackElo "1804"]
[TimeControl "300"]
[EndTime "12:18:47 PDT"]
[Termination "Stanbad1 won by resignation"]

1. d4 {[%clk 0:04:54.1]} 1... Nf6 {[%clk 0:04:58.2]} 2. Bg5 {[%clk 0:04:51.3]}
2... e6 {[%clk 0:04:57]} 3. Nd2 {[%clk 0:04:48.7]} 3... c5 {[%clk 0:04:54.6]} 4.
c3 {[%clk 0:04:47.4]} 4... d5 {[%clk 0:04:53.6]} 5. Ngf3 {[%clk 0:04:43.8]} 5...
Nbd7 {[%clk 0:04:52.3]} 6. e3 {[%clk 0:04:42.7]} 6... Be7 {[%clk 0:04:51.3]} 7.
Bb5 {[%clk 0:04:40.5]} 7... O-O {[%clk 0:04:49.5]} 8. h3 {[%clk 0:04:38]} 8...
h6 {[%clk 0:04:48.2]} 9. Bf4 {[%clk 0:04:36.9]} 9... a6 {[%clk 0:04:46.1]} 10.
Bd3 {[%clk 0:04:35.6]} 10... b5 {[%clk 0:04:42.8]} 11. Qe2 {[%clk 0:04:34.5]}
11... Bb7 {[%clk 0:04:41.2]} 12. O-O {[%clk 0:04:33.1]} 12... Ne4 {[%clk
0:04:35.9]} 13. Bxe4 {[%clk 0:04:30.1]} 13... dxe4 {[%clk 0:04:34]} 14. Ne5
{[%clk 0:04:29.5]} 14... Nxe5 {[%clk 0:04:31.2]} 15. Bxe5 {[%clk 0:04:29.4]}
15... f6 {[%clk 0:04:27.1]} 16. Bf4 {[%clk 0:04:23.7]} 16... f5 {[%clk
0:04:23.8]} 17. Be5 {[%clk 0:04:20.7]} 17... Bd6 {[%clk 0:04:21.2]} 18. Bxd6
{[%clk 0:04:18.4]} 18... Qxd6 {[%clk 0:04:19.3]} 19. Nb3 {[%clk 0:04:18]} 19...
c4 {[%clk 0:04:13.5]} 20. Nc5 {[%clk 0:04:15.9]} 20... Bd5 {[%clk 0:04:12.3]}
21. b3 {[%clk 0:04:14.9]} 21... Rac8 {[%clk 0:04:03.9]} 22. b4 {[%clk
0:04:13.4]} 22... Rf6 {[%clk 0:03:48.1]} 23. a4 {[%clk 0:04:06.3]} 23... Bc6
{[%clk 0:03:36.3]} 24. axb5 {[%clk 0:04:04.1]} 24... Bxb5 {[%clk 0:03:35.3]} 25.
f4 {[%clk 0:04:00.6]} 25... exf3 {[%clk 0:03:16.8]} 26. Qxf3 {[%clk 0:03:58.6]}
26... g5 {[%clk 0:03:03]} 27. Ne4 {[%clk 0:03:55]} 27... fxe4 {[%clk 0:02:48]}
28. Qxf6 {[%clk 0:03:52.4]} 28... Rf8 {[%clk 0:02:46.9]} 29. Qg6+ {[%clk
0:03:50.6]} 1-0

[Event "Live Chess"]
[Site "Chess.com"]
[Date "2023.05.20"]
[Round "-"]
[White "manthanit"]
[Black "GEMdzq"]
[Result "0-1"]
[WhiteElo "964"]
[BlackElo "2243"]
[TimeControl "300"]
[EndTime "12:18:51 PDT"]
[Termination "GEMdzq won by resignation"]

1. e4 {[%clk 0:04:59.6]} 1... d6 {[%clk 0:04:58.7]} 2. d4 {[%clk 0:04:55.2]}
2... Nf6 {[%clk 0:04:57]} 3. Nc3 {[%clk 0:04:53.7]} 3... g6 {[%clk 0:04:56.2]}
4. Nf3 {[%clk 0:04:52.5]} 4... Bg7 {[%clk 0:04:55.6]} 5. Be3 {[%clk 0:04:51.7]}
5... c6 {[%clk 0:04:52.8]} 6. Bd3 {[%clk 0:04:51.1]} 6... b5 {[%clk 0:04:51.8]}
7. a3 {[%clk 0:04:49.5]} 7... Nbd7 {[%clk 0:04:43]} 8. h3 {[%clk 0:04:47.9]}
8... Nb6 {[%clk 0:04:41.7]} 9. O-O {[%clk 0:04:44.5]} 9... O-O {[%clk
0:04:38.7]} 10. e5 {[%clk 0:04:31.5]} 10... dxe5 {[%clk 0:04:34.7]} 11. Nxe5
{[%clk 0:04:27.1]} 11... Bb7 {[%clk 0:04:21.7]} 12. a4 {[%clk 0:04:04.9]} 12...
a6 {[%clk 0:04:13.4]} 13. Ne4 {[%clk 0:03:59.4]} 13... Nxe4 {[%clk 0:04:09.8]}
14. Bxe4 {[%clk 0:03:58.2]} 14... Nd5 {[%clk 0:04:08.8]} 15. axb5 {[%clk
0:03:55.7]} 15... cxb5 {[%clk 0:04:05.3]} 16. c4 {[%clk 0:03:50.7]} 16... Nxe3
{[%clk 0:03:58.3]} 17. fxe3 {[%clk 0:03:42.2]} 17... Bxe4 {[%clk 0:03:56.4]} 18.
Qg4 {[%clk 0:03:33.2]} 18... f5 {[%clk 0:03:48.4]} 19. Qd1 {[%clk 0:03:18.6]}
19... Bxe5 {[%clk 0:03:46.2]} 20. dxe5 {[%clk 0:03:15.5]} 20... Qxd1 {[%clk
0:03:46.1]} 21. Raxd1 {[%clk 0:03:14.3]} 21... bxc4 {[%clk 0:03:43.1]} 22. Rd7
{[%clk 0:03:12.5]} 22... Kf7 {[%clk 0:03:41.7]} 23. Rfd1 {[%clk 0:03:10.8]}
23... Bd3 {[%clk 0:03:40.3]} 24. Rd2 {[%clk 0:03:09.6]} 24... Rfd8 {[%clk
0:03:39.2]} 25. Rc7 {[%clk 0:03:07.4]} 25... Ke6 {[%clk 0:03:36.2]} 26. Kf2
{[%clk 0:03:03.5]} 26... Kxe5 {[%clk 0:03:35.4]} 27. Rxe7+ {[%clk 0:03:01]}
27... Kf6 {[%clk 0:03:34.7]} 28. Rc7 {[%clk 0:02:59.6]} 28... h6 {[%clk
0:03:31.3]} 29. g4 {[%clk 0:02:54.4]} 29... Rd6 {[%clk 0:03:27.8]} 30. gxf5
{[%clk 0:02:50]} 30... gxf5 {[%clk 0:03:27.7]} 31. h4 {[%clk 0:02:47.5]} 31...
Rg8 {[%clk 0:03:26.2]} 32. Rh7 {[%clk 0:02:42]} 32... Kg6 {[%clk 0:03:22.6]} 33.
Re7 {[%clk 0:02:37.7]} 33... Kh5 {[%clk 0:03:13.9]} 0-1

[Event "Live Chess"]
[Site "Chess.com"]
[Date "2023.05.20"]
[Round "-"]
[White "GMHarry-youtube"]
[Black "HugeManAmin"]
[Result "1-0"]
[WhiteElo "2109"]
[BlackElo "1443"]
[TimeControl "300"]
[EndTime "12:18:56 PDT"]
[Termination "GMHarry-youtube won by resignation"]

1. e4 {[%clk 0:04:56.1]} 1... e5 {[%clk 0:04:56.4]} 2. Nf3 {[%clk 0:04:54.2]}
2... Nc6 {[%clk 0:04:54.9]} 3. Bc4 {[%clk 0:04:52.1]} 3... Nf6 {[%clk
0:04:53.6]} 4. O-O {[%clk 0:04:47.7]} 4... Bc5 {[%clk 0:04:49.8]} 5. c3 {[%clk
0:04:43.2]} 5... d5 {[%clk 0:04:39]} 6. exd5 {[%clk 0:04:39.7]} 6... Nxd5 {[%clk
0:04:36.6]} 7. d4 {[%clk 0:04:35]} 7... Nb6 {[%clk 0:04:04.9]} 8. Bxf7+ {[%clk
0:04:30]} 8... Kxf7 {[%clk 0:03:56.8]} 9. Ng5+ {[%clk 0:04:29]} 9... Ke8 {[%clk
0:03:37.7]} 10. Qf3 {[%clk 0:04:13.1]} 10... Rf8 {[%clk 0:03:12.6]} 11. Qh5+
{[%clk 0:04:08.5]} 11... g6 {[%clk 0:03:11.2]} 12. Qxh7 {[%clk 0:03:59.3]} 12...
Be7 {[%clk 0:03:05.2]} 13. Qxg6+ {[%clk 0:03:49.9]} 13... Kd7 {[%clk 0:03:01.1]}
14. Qe6+ {[%clk 0:03:41.6]} 14... Ke8 {[%clk 0:02:59.2]} 15. Qg6+ {[%clk
0:03:38.7]} 15... Kd7 {[%clk 0:02:56.7]} 16. d5 {[%clk 0:03:37.2]} 16... Rf6
{[%clk 0:02:16.1]} 17. dxc6+ {[%clk 0:03:32.3]} 17... Kxc6 {[%clk 0:02:09]} 18.
Qe4+ {[%clk 0:03:26]} 18... Nd5 {[%clk 0:02:01.7]} 19. c4 {[%clk 0:03:21.9]} 1-0

[Event "Live Chess"]
[Site "Chess.com"]
[Date "2023.05.20"]
[Round "-"]
[White "sup3rm0nk3y"]
[Black "NatashaRegan"]
[Result "0-1"]
[WhiteElo "1329"]
[BlackElo "1822"]
[TimeControl "300"]
[EndTime "12:19:00 PDT"]
[Termination "NatashaRegan won by resignation"]

1. e4 {[%clk 0:04:59.2]} 1... Nf6 {[%clk 0:04:56.8]} 2. Nc3 {[%clk 0:04:56.8]}
2... e5 {[%clk 0:04:54.6]} 3. Bc4 {[%clk 0:04:55.2]} 3... Bc5 {[%clk 0:04:52.3]}
4. d3 {[%clk 0:04:53.6]} 4... O-O {[%clk 0:04:50.7]} 5. Be3 {[%clk 0:04:52.3]}
5... Bxe3 {[%clk 0:04:45.4]} 6. fxe3 {[%clk 0:04:50.8]} 6... c6 {[%clk
0:04:42.9]} 7. a3 {[%clk 0:04:44.9]} 7... d5 {[%clk 0:04:39.7]} 8. exd5 {[%clk
0:04:43.9]} 8... cxd5 {[%clk 0:04:39.6]} 9. Ba2 {[%clk 0:04:40.8]} 9... Nc6
{[%clk 0:04:36.3]} 10. Nf3 {[%clk 0:04:37.2]} 10... Bg4 {[%clk 0:04:32.6]} 11.
h3 {[%clk 0:04:32.8]} 11... Bh5 {[%clk 0:04:29.5]} 12. g4 {[%clk 0:04:31.3]}
12... Bg6 {[%clk 0:04:24.9]} 13. Qe2 {[%clk 0:04:27.8]} 13... e4 {[%clk
0:04:21.5]} 14. Nd4 {[%clk 0:04:15.2]} 14... Nxd4 {[%clk 0:04:16.4]} 15. exd4
{[%clk 0:04:11]} 15... exd3 {[%clk 0:04:12.2]} 0-1

[Event "Live Chess"]
[Site "Chess.com"]
[Date "2023.05.20"]
[Round "-"]
[White "ReceptiveCamel"]
[Black "ChippyChill"]
[Result "1-0"]
[WhiteElo "689"]
[BlackElo "594"]
[TimeControl "300"]
[EndTime "12:19:01 PDT"]
[Termination "ReceptiveCamel won by resignation"]

1. d4 {[%clk 0:04:54.3]} 1... d5 {[%clk 0:04:57.8]} 2. c4 {[%clk 0:04:51.3]}
2... e6 {[%clk 0:04:52.4]} 3. cxd5 {[%clk 0:04:47.3]} 3... Qxd5 {[%clk
0:04:49.1]} 4. Bf4 {[%clk 0:04:46.7]} 4... Qc6 {[%clk 0:04:39.6]} 5. Na3 {[%clk
0:04:43.3]} 5... Bxa3 {[%clk 0:04:36.3]} 6. bxa3 {[%clk 0:04:41.3]} 6... Nd7
{[%clk 0:04:32.7]} 7. Rc1 {[%clk 0:04:28]} 7... Qb6 {[%clk 0:04:24.6]} 8. Bxc7
{[%clk 0:04:20.7]} 8... Qb2 {[%clk 0:04:18.3]} 9. Rc2 {[%clk 0:04:09.5]} 9...
Qb5 {[%clk 0:04:09.6]} 10. e4 {[%clk 0:04:02.4]} 10... Ngf6 {[%clk 0:04:04.5]}
11. Bxb5 {[%clk 0:03:59]} 1-0

[Event "Live Chess"]
[Site "Chess.com"]
[Date "2023.05.20"]
[Round "-"]
[White "onemoretime1975"]
[Black "flyingpuffins"]
[Result "0-1"]
[WhiteElo "1917"]
[BlackElo "1975"]
[TimeControl "300"]
[EndTime "12:19:06 PDT"]
[Termination "flyingpuffins won on time"]

1. e4 {[%clk 0:04:58.1]} 1... c5 {[%clk 0:04:58.7]} 2. Nf3 {[%clk 0:04:56.1]}
2... g6 {[%clk 0:04:57.7]} 3. g3 {[%clk 0:04:53.5]} 3... Bg7 {[%clk 0:04:56.3]}
4. d3 {[%clk 0:04:52]} 4... Nc6 {[%clk 0:04:55.7]} 5. Bg2 {[%clk 0:04:49.5]}
5... d6 {[%clk 0:04:52.1]} 6. c3 {[%clk 0:04:46.1]} 6... Rb8 {[%clk 0:04:50]} 7.
O-O {[%clk 0:04:43.6]} 7... b5 {[%clk 0:04:49.2]} 8. a3 {[%clk 0:04:40.4]} 8...
e6 {[%clk 0:04:48.4]} 9. Be3 {[%clk 0:04:35.1]} 9... Nge7 {[%clk 0:04:47.1]} 10.
Nbd2 {[%clk 0:04:32.4]} 10... O-O {[%clk 0:04:45.9]} 11. Rc1 {[%clk 0:04:27.1]}
11... a5 {[%clk 0:04:44.8]} 12. d4 {[%clk 0:04:17.2]} 12... cxd4 {[%clk
0:04:31.7]} 13. Nxd4 {[%clk 0:04:15.1]} 13... Nxd4 {[%clk 0:04:24]} 14. Bxd4
{[%clk 0:04:13.8]} 14... d5 {[%clk 0:04:20.9]} 15. Bxg7 {[%clk 0:04:10.8]} 15...
Kxg7 {[%clk 0:04:20.8]} 16. exd5 {[%clk 0:04:08]} 16... Nxd5 {[%clk 0:04:19.9]}
17. Ne4 {[%clk 0:04:01.4]} 17... Ba6 {[%clk 0:04:09.7]} 18. Qd4+ {[%clk
0:03:47.4]} 18... Nf6 {[%clk 0:04:03.8]} 19. Qxf6+ {[%clk 0:03:29.4]} 19... Qxf6
{[%clk 0:04:02.5]} 20. Nxf6 {[%clk 0:03:27.8]} 20... Kxf6 {[%clk 0:04:02.4]} 21.
Rfd1 {[%clk 0:03:26.2]} 21... Rfd8 {[%clk 0:03:59.3]} 22. f4 {[%clk 0:03:15.3]}
22... b4 {[%clk 0:03:48.4]} 23. axb4 {[%clk 0:03:10.9]} 23... axb4 {[%clk
0:03:47.5]} 24. Bf3 {[%clk 0:03:07.6]} 24... bxc3 {[%clk 0:03:24.8]} 25. bxc3
{[%clk 0:03:02.6]} 25... Rdc8 {[%clk 0:03:09.7]} 26. Re1 {[%clk 0:02:31.4]}
26... Rb3 {[%clk 0:03:01.2]} 27. Re3 {[%clk 0:02:29.6]} 27... Rb2 {[%clk
0:02:49.1]} 28. h4 {[%clk 0:01:53]} 28... h5 {[%clk 0:02:47.4]} 29. Be4 {[%clk
0:01:38.1]} 29... Bc4 {[%clk 0:02:38.9]} 30. Rc2 {[%clk 0:01:26.6]} 30... Rb1+
{[%clk 0:02:37.8]} 31. Kg2 {[%clk 0:01:20.3]} 31... Rd8 {[%clk 0:02:19.2]} 32.
Rf2 {[%clk 0:01:13.3]} 32... Rc1 {[%clk 0:02:13.2]} 33. Bf3 {[%clk 0:01:02]}
33... Bd5 {[%clk 0:02:03.7]} 34. Bxd5 {[%clk 0:01:00]} 34... Rxd5 {[%clk
0:02:03.6]} 35. Rff3 {[%clk 0:00:48]} 35... Rdd1 {[%clk 0:02:00]} 36. Kf2 {[%clk
0:00:44.8]} 36... Rf1+ {[%clk 0:01:53.1]} 37. Ke2 {[%clk 0:00:43.3]} 37... Rfe1+
{[%clk 0:01:46.4]} 38. Kd2 {[%clk 0:00:41.8]} 38... Rcd1+ {[%clk 0:01:42.1]} 39.
Kc2 {[%clk 0:00:40.6]} 39... Rc1+ {[%clk 0:01:35.7]} 40. Kb3 {[%clk 0:00:40.2]}
40... Red1 {[%clk 0:01:30.2]} 41. Rd3 {[%clk 0:00:38.3]} 41... Re1 {[%clk
0:01:29.2]} 42. Rde3 {[%clk 0:00:37.3]} 42... Red1 {[%clk 0:01:27.7]} 43. Rd3
{[%clk 0:00:36.9]} 43... Rb1+ {[%clk 0:01:25.5]} 44. Kc4 {[%clk 0:00:35.4]}
44... Rdc1 {[%clk 0:01:22.7]} 45. Rd4 {[%clk 0:00:33]} 45... Rb8 {[%clk
0:01:20.1]} 46. Kd3 {[%clk 0:00:31.2]} 46... Rc8 {[%clk 0:01:13.6]} 47. c4
{[%clk 0:00:30.1]} 47... Ra1 {[%clk 0:01:09.7]} 48. Kd2 {[%clk 0:00:28]} 48...
Ra4 {[%clk 0:01:06.9]} 49. Rc3 {[%clk 0:00:26.7]} 49... Ra2+ {[%clk 0:01:06.1]}
50. Kd3 {[%clk 0:00:25.9]} 50... Rg2 {[%clk 0:01:05.5]} 51. Ke4 {[%clk
0:00:23.9]} 51... Ke7 {[%clk 0:01:00]} 52. c5 {[%clk 0:00:22.5]} 52... f5+
{[%clk 0:00:42.4]} 53. Kf3 {[%clk 0:00:20.1]} 53... Ra2 {[%clk 0:00:39.5]} 54.
c6 {[%clk 0:00:19.4]} 54... Ra6 {[%clk 0:00:38.4]} 55. Rd7+ {[%clk 0:00:18.2]}
55... Ke8 {[%clk 0:00:36]} 56. Rd6 {[%clk 0:00:16.9]} 56... Ke7 {[%clk
0:00:34.9]} 57. Rd7+ {[%clk 0:00:16]} 57... Kf6 {[%clk 0:00:33.7]} 58. c7 {[%clk
0:00:13.8]} 58... Ra7 {[%clk 0:00:31.1]} 59. Ke3 {[%clk 0:00:12.8]} 59... e5
{[%clk 0:00:28.8]} 60. fxe5+ {[%clk 0:00:10.8]} 60... Kxe5 {[%clk 0:00:28.7]}
61. Rc5+ {[%clk 0:00:09.8]} 61... Ke6 {[%clk 0:00:27.8]} 62. Rg7 {[%clk
0:00:07.1]} 62... Kf6 {[%clk 0:00:27.2]} 63. Rh7 {[%clk 0:00:06.1]} 63... Ra3+
{[%clk 0:00:23.7]} 64. Kf4 {[%clk 0:00:05.2]} 64... Ra4+ {[%clk 0:00:21.6]} 65.
Ke3 {[%clk 0:00:04.2]} 65... Re4+ {[%clk 0:00:20.2]} 66. Kf3 {[%clk 0:00:02.1]}
66... Rb4 {[%clk 0:00:18.7]} 67. Rc6+ {[%clk 0:00:01.1]} 67... Ke5 {[%clk
0:00:16.6]} 68. Rc5+ {[%clk 0:00:00.6]} 68... Kd6 {[%clk 0:00:15.5]} 0-1

[Event "Live Chess"]
[Site "Chess.com"]
[Date "2023.05.20"]
[Round "-"]
[White "omisoc"]
[Black "Duke_of_Bebington"]
[Result "1-0"]
[WhiteElo "2189"]
[BlackElo "1573"]
[TimeControl "300"]
[EndTime "12:19:12 PDT"]
[Termination "omisoc won by resignation"]

1. b3 {[%clk 0:04:58.8]} 1... e5 {[%clk 0:04:55.1]} 2. Bb2 {[%clk 0:04:57.6]}
2... Nc6 {[%clk 0:04:53.6]} 3. e3 {[%clk 0:04:57.5]} 3... d5 {[%clk 0:04:52.6]}
4. g3 {[%clk 0:04:52.2]} 4... Bd6 {[%clk 0:04:47.5]} 5. Bg2 {[%clk 0:04:50.1]}
5... Be6 {[%clk 0:04:46.9]} 6. d3 {[%clk 0:04:48]} 6... Nf6 {[%clk 0:04:46.1]}
7. c4 {[%clk 0:04:46.5]} 7... d4 {[%clk 0:04:35]} 8. e4 {[%clk 0:04:42.7]} 8...
O-O {[%clk 0:04:29.7]} 9. a3 {[%clk 0:04:40.7]} 9... a5 {[%clk 0:04:26.5]} 10.
Nf3 {[%clk 0:04:38.9]} 10... Qd7 {[%clk 0:04:16.1]} 11. O-O {[%clk 0:04:35.9]}
11... Bh3 {[%clk 0:04:13.7]} 12. Nbd2 {[%clk 0:04:34.5]} 12... Bxg2 {[%clk
0:04:12.5]} 13. Kxg2 {[%clk 0:04:34.3]} 13... h5 {[%clk 0:04:09.5]} 14. Nh4
{[%clk 0:04:29.7]} 14... g6 {[%clk 0:04:06.4]} 15. Bc1 {[%clk 0:04:18.6]} 15...
Rfe8 {[%clk 0:04:03.6]} 16. Ndf3 {[%clk 0:04:16.8]} 16... Bf8 {[%clk 0:03:55.2]}
17. Bd2 {[%clk 0:04:08.6]} 17... Bg7 {[%clk 0:03:33.5]} 18. b4 {[%clk
0:04:01.8]} 18... axb4 {[%clk 0:03:31]} 19. axb4 {[%clk 0:04:00.3]} 19... Qd6
{[%clk 0:03:14.3]} 20. b5 {[%clk 0:03:52.2]} 20... Nd8 {[%clk 0:02:53.7]} 21.
Rxa8 {[%clk 0:03:46.1]} 21... c6 {[%clk 0:02:41]} 22. bxc6 {[%clk 0:03:39.6]}
22... bxc6 {[%clk 0:02:40.2]} 23. Qb3 {[%clk 0:03:33.6]} 23... Nh7 {[%clk
0:02:29.9]} 24. Qa3 {[%clk 0:03:28.7]} 24... Qf6 {[%clk 0:02:20.6]} 25. Rb1
{[%clk 0:03:19.3]} 25... Bf8 {[%clk 0:02:15.6]} 26. Qa6 {[%clk 0:03:17]} 26...
Qg7 {[%clk 0:02:08.5]} 27. Rbb8 {[%clk 0:03:11.6]} 27... Be7 {[%clk 0:02:04.5]}
28. Qb6 {[%clk 0:03:09.3]} 28... Qf6 {[%clk 0:01:59.6]} 29. Qc7 {[%clk
0:02:52.5]} 29... Bd6 {[%clk 0:01:48]} 30. Qd7 {[%clk 0:02:50.9]} 30... Kf8
{[%clk 0:01:31.7]} 31. Rxd8 {[%clk 0:02:46.3]} 1-0

[Event "Live Chess"]
[Site "Chess.com"]
[Date "2023.05.20"]
[Round "-"]
[White "TDCMF"]
[Black "elizaveta_frundina"]
[Result "0-1"]
[WhiteElo "370"]
[BlackElo "1565"]
[TimeControl "300"]
[EndTime "12:19:19 PDT"]
[Termination "elizaveta_frundina won by checkmate"]

1. e4 {[%clk 0:04:58.6]} 1... c5 {[%clk 0:04:57.7]} 2. Bc4 {[%clk 0:04:53.9]}
2... e6 {[%clk 0:04:56.2]} 3. Nf3 {[%clk 0:04:52.5]} 3... d5 {[%clk 0:04:55.2]}
4. exd5 {[%clk 0:04:44.7]} 4... exd5 {[%clk 0:04:54.2]} 5. Bxd5 {[%clk
0:04:30.1]} 5... Qxd5 {[%clk 0:04:51.3]} 6. b3 {[%clk 0:04:15]} 6... Bg4 {[%clk
0:04:43.7]} 7. c4 {[%clk 0:04:13]} 7... Qe4+ {[%clk 0:04:30.7]} 8. Qe2 {[%clk
0:04:02.6]} 8... Bxf3 {[%clk 0:04:26.7]} 9. Qxe4+ {[%clk 0:04:00.7]} 9... Bxe4
{[%clk 0:04:25.3]} 10. d3 {[%clk 0:03:58.5]} 10... Bxd3 {[%clk 0:04:19]} 11. Nc3
{[%clk 0:03:48.5]} 11... Bd6 {[%clk 0:04:15.1]} 12. Kd2 {[%clk 0:03:44.4]} 12...
Bg6 {[%clk 0:04:10.2]} 13. Re1+ {[%clk 0:03:42.2]} 13... Kd7 {[%clk 0:04:09.3]}
14. Ba3 {[%clk 0:03:36.3]} 14... Nf6 {[%clk 0:04:07.8]} 15. Re3 {[%clk
0:03:35.1]} 15... Nc6 {[%clk 0:04:05]} 16. Rae1 {[%clk 0:03:33.4]} 16... Rhe8
{[%clk 0:04:03.3]} 17. Nd5 {[%clk 0:03:29]} 17... Rxe3 {[%clk 0:04:00.2]} 18.
Rxe3 {[%clk 0:03:23.1]} 18... Nxd5 {[%clk 0:03:56.7]} 19. cxd5 {[%clk 0:03:22]}
19... Nd4 {[%clk 0:03:50.6]} 20. b4 {[%clk 0:03:09.4]} 20... Bf4 {[%clk
0:03:49]} 21. bxc5 {[%clk 0:03:06.9]} 21... Bxe3+ {[%clk 0:03:47.5]} 22. Kxe3
{[%clk 0:03:06]} 22... Nc2+ {[%clk 0:03:46.7]} 23. Kd2 {[%clk 0:03:02.2]} 23...
Nxa3 {[%clk 0:03:45.3]} 24. Ke3 {[%clk 0:02:54]} 24... Rc8 {[%clk 0:03:43.5]}
25. c6+ {[%clk 0:02:50.3]} 25... bxc6 {[%clk 0:03:40.5]} 26. dxc6+ {[%clk
0:02:49.6]} 26... Rxc6 {[%clk 0:03:39.5]} 27. f4 {[%clk 0:02:49.1]} 27... Rc3+
{[%clk 0:03:38.3]} 28. Kd4 {[%clk 0:02:47]} 28... Rc4+ {[%clk 0:03:36.2]} 29.
Kd5 {[%clk 0:02:45.6]} 29... Be4+ {[%clk 0:03:32.4]} 30. Ke5 {[%clk 0:02:40.9]}
30... f6# {[%clk 0:03:31.3]} 0-1

[Event "Live Chess"]
[Site "Chess.com"]
[Date "2023.05.20"]
[Round "-"]
[White "boilerboy1"]
[Black "ramses-IIG"]
[Result "1/2-1/2"]
[WhiteElo "1053"]
[BlackElo "794"]
[TimeControl "300"]
[EndTime "12:19:21 PDT"]
[Termination "Game drawn - insufficient material"]

1. e4 {[%clk 0:04:51.7]} 1... d5 {[%clk 0:04:59.9]} 2. exd5 {[%clk 0:04:50.1]}
2... Qxd5 {[%clk 0:04:59.8]} 3. Nc3 {[%clk 0:04:48.1]} 3... Qe6+ {[%clk
0:04:59.7]} 4. Be2 {[%clk 0:04:45.2]} 4... Qg6 {[%clk 0:04:59.6]} 5. Bf3 {[%clk
0:04:41.5]} 5... c6 {[%clk 0:04:22.7]} 6. Nge2 {[%clk 0:04:39.4]} 6... e5 {[%clk
0:04:20.7]} 7. O-O {[%clk 0:04:36.9]} 7... f6 {[%clk 0:04:19.8]} 8. Ng3 {[%clk
0:04:32.6]} 8... Be7 {[%clk 0:04:16.8]} 9. Be4 {[%clk 0:04:30.1]} 9... Qf7
{[%clk 0:04:15.4]} 10. d3 {[%clk 0:04:26.2]} 10... h5 {[%clk 0:04:14]} 11. h4
{[%clk 0:04:23.5]} 11... g6 {[%clk 0:04:09.7]} 12. Be3 {[%clk 0:04:06.6]} 12...
f5 {[%clk 0:04:08.7]} 13. Bf3 {[%clk 0:03:57.8]} 13... Bxh4 {[%clk 0:04:07.4]}
14. Nge2 {[%clk 0:03:35.3]} 14... Be7 {[%clk 0:04:01.6]} 15. g3 {[%clk
0:03:24.9]} 15... h4 {[%clk 0:04:00.6]} 16. gxh4 {[%clk 0:03:22]} 16... Rxh4
{[%clk 0:03:54.8]} 17. Bg2 {[%clk 0:03:20.6]} 17... Qh7 {[%clk 0:03:52.1]} 18.
Ng3 {[%clk 0:03:18.2]} 18... f4 {[%clk 0:03:48.4]} 19. Bxf4 {[%clk 0:03:11.8]}
19... exf4 {[%clk 0:03:48.3]} 20. Nge4 {[%clk 0:03:00.1]} 20... Bh3 {[%clk
0:03:35.1]} 21. Qf3 {[%clk 0:02:56.8]} 21... Bxg2 {[%clk 0:03:34]} 22. Qxg2
{[%clk 0:02:54.8]} 22... Nf6 {[%clk 0:03:05.4]} 23. Rae1 {[%clk 0:02:50.5]}
23... Kf7 {[%clk 0:02:51.1]} 24. Ng5+ {[%clk 0:02:45.9]} 24... Kg7 {[%clk
0:02:44.6]} 25. Nxh7 {[%clk 0:02:44.3]} 25... Rg4 {[%clk 0:02:44.1]} 26. Nxf6
{[%clk 0:02:39.1]} 26... Rxg2+ {[%clk 0:02:41.9]} 27. Kxg2 {[%clk 0:02:37.4]}
27... Bxf6 {[%clk 0:02:41.8]} 28. Ne4 {[%clk 0:02:33.4]} 28... Bxb2 {[%clk
0:02:39.8]} 29. c3 {[%clk 0:02:28.8]} 29... Nd7 {[%clk 0:02:36.5]} 30. d4 {[%clk
0:02:26.9]} 30... b6 {[%clk 0:02:34.4]} 31. Rb1 {[%clk 0:02:18.6]} 31... Ba3
{[%clk 0:02:32.6]} 32. Ng5 {[%clk 0:02:11.4]} 32... Nf6 {[%clk 0:02:29.3]} 33.
Ne6+ {[%clk 0:02:09.9]} 33... Kf7 {[%clk 0:02:27.3]} 34. Nxf4 {[%clk 0:02:06.4]}
34... Bd6 {[%clk 0:02:22.6]} 35. Nd3 {[%clk 0:01:56.3]} 35... Rh8 {[%clk
0:02:21.3]} 36. Ne5+ {[%clk 0:01:52.9]} 36... Bxe5 {[%clk 0:02:19.3]} 37. dxe5
{[%clk 0:01:51]} 37... Ne4 {[%clk 0:02:13.5]} 38. Rh1 {[%clk 0:01:39.5]} 38...
Rxh1 {[%clk 0:01:58.1]} 39. Rxh1 {[%clk 0:01:36.6]} 39... Nxc3 {[%clk 0:01:57]}
40. Rh7+ {[%clk 0:01:33.5]} 40... Ke6 {[%clk 0:01:55.2]} 41. Rxa7 {[%clk
0:01:31.2]} 41... Kxe5 {[%clk 0:01:49.4]} 42. Ra6 {[%clk 0:01:29.7]} 42... b5
{[%clk 0:01:37.8]} 43. Rxc6 {[%clk 0:01:28.2]} 43... Nxa2 {[%clk 0:01:36.7]} 44.
Rxg6 {[%clk 0:01:26.5]} 44... Kd4 {[%clk 0:01:35.2]} 45. Rg5 {[%clk 0:01:21.1]}
45... b4 {[%clk 0:01:32]} 46. Rb5 {[%clk 0:01:17.5]} 46... Kc4 {[%clk
0:01:29.1]} 47. Rb8 {[%clk 0:01:15.7]} 47... b3 {[%clk 0:01:27.2]} 48. f4 {[%clk
0:01:14.5]} 48... Kc3 {[%clk 0:01:25.5]} 49. f5 {[%clk 0:01:13]} 49... b2 {[%clk
0:01:23.6]} 50. f6 {[%clk 0:01:09]} 50... Nb4 {[%clk 0:01:22.4]} 51. f7 {[%clk
0:01:05]} 51... b1=Q {[%clk 0:01:20.2]} 52. Rc8+ {[%clk 0:00:56]} 52... Kb3
{[%clk 0:01:16.7]} 53. f8=Q {[%clk 0:00:54]} 53... Qb2+ {[%clk 0:01:13.2]} 54.
Qf2 {[%clk 0:00:49.3]} 54... Qg7+ {[%clk 0:01:02.6]} 55. Qg3+ {[%clk 0:00:45.2]}
55... Qxg3+ {[%clk 0:00:58.1]} 56. Kxg3 {[%clk 0:00:43.7]} 56... Nd3 {[%clk
0:00:55.5]} 57. Kg4 {[%clk 0:00:38.9]} 57... Kb4 {[%clk 0:00:53.3]} 58. Kg5
{[%clk 0:00:37.7]} 58... Kb5 {[%clk 0:00:52.6]} 59. Kg6 {[%clk 0:00:36.5]} 59...
Kb6 {[%clk 0:00:51.9]} 60. Kg7 {[%clk 0:00:35.3]} 60... Ne5 {[%clk 0:00:51]} 61.
Rb8+ {[%clk 0:00:30.2]} 61... Kc7 {[%clk 0:00:49.8]} 62. Ra8 {[%clk 0:00:25.8]}
62... Nd7 {[%clk 0:00:47.2]} 63. Ra7+ {[%clk 0:00:20.5]} 63... Kc6 {[%clk
0:00:45.8]} 64. Rxd7 {[%clk 0:00:19.3]} 64... Kxd7 {[%clk 0:00:45.7]} 1/2-1/2